bitfinex-derivatives/quotes_ETHF0:USTF0_20250123
["timestamp","ask_amount","ask_price","bid_price","bid_amount"]
[1737674738667,0.8165,3345.3,3345.2,0.59772]
[1737674739072,0.8165,3345.3,3345.1,0.59773]
[1737674740179,0.59774,3345.1,3345.0,3.2078]
[1737674740469,0.59781,3344.7,3344.6,0.00448349]
[1737674740965,3.2078,3344.8,3344.6,0.00448349]
[1737674741165,0.59776,3345.0,3344.6,0.60230349]
[1737674741362,0.59779,3344.8,3344.6,0.00448349]
[1737674741574,3.80557,3344.9,3344.6,0.00448349]
[1737674741864,3.2078,3344.9,3344.6,0.00448349]
[1737674742069,0.59781,3344.7,3344.6,0.00448349]
[1737674742272,3.2078,3344.9,3344.6,0.00448349]
[1737674742574,0.5978,3344.8,3344.6,0.00448349]
[1737674743370,3.2078,3346.0,3345.5,0.59766]
[1737674743565,0.59762,3345.8,3345.5,3.2078]
[1737674743768,3.80538,3346.0,3345.5,3.80546]
[1737674744067,3.2078,3346.0,3345.5,44.0078]
[1737674744274,0.59759,3345.9,3345.5,44.60546]
[1737674744471,0.59759,3345.9,3345.5,3.80546]
[1737674744669,0.59759,3345.9,3345.5,0.59766]
[1737674744867,0.59759,3345.9,3345.5,41.39766]
[1737674745064,3.2078,3346.0,3345.5,0.59766]
[1737674745065,0.59758,3346.0,3345.5,0.59766]
[1737674745277,0.01078349,3346.6,3345.5,3.80546]
[1737674745472,0.01078349,3346.6,3345.5,8.80546]
[1737674745668,0.01078349,3346.6,3345.5,44.60546]
[1737674746079,0.01078349,3346.6,3345.5,45.43796]
[1737674746271,0.60826349,3346.6,3345.5,45.43796]
[1737674746474,0.01078349,3346.6,3345.5,45.43796]
[1737674746672,0.60826349,3346.6,3345.5,45.43796]
[1737674747073,0.01078349,3346.6,3345.5,45.43796]
[1737674747574,0.00448349,3346.6,3345.5,45.43796]
[1737674747774,0.59755,3346.2,3345.5,45.43796]
[1737674748377,0.00448349,3346.6,3345.5,4.63796]
[1737674748675,1.6841,3345.6,3345.5,4.63796]
[1737674748880,1.6841,3345.6,3345.5,3.80546]
[1737674749077,1.6841,3345.6,3345.5,0.59766]
[1737674749272,1.6841,3345.6,3345.1,3.2078]
[1737674749478,1.6841,3345.6,3344.9,0.8406]
[1737674749479,2.28176,3345.6,3345.3,0.59769]
[1737674749778,0.59767,3345.5,3345.3,0.59769]
[1737674749974,0.5977,3345.3,3345.1,0.59772]
[1737674750175,0.2494,3345.6,3344.7,3.2078]
[1737674750377,0.59777,3344.9,3344.7,3.8056]
[1737674750573,3.2078,3345.1,3344.6,0.00448349]
[1737674750881,3.80561,3344.7,3344.6,0.00448349]
[1737674751077,3.80561,3344.7,3344.0,0.59792]
[1737674751078,0.59789,3344.3,3344.0,0.59792]
[1737674751278,3.2078,3344.1,3343.7,0.59798]
[1737674751578,0.59794,3344.0,3343.7,0.59798]
[1737674751777,3.2078,3344.1,3343.9,0.59794]
[1737674752174,3.2078,3344.1,3344.0,0.59793]
[1737674752380,3.2078,3344.1,3343.7,0.60245349]
[1737674752580,3.2078,3344.1,3343.7,0.00448349]
[1737674752879,0.59797,3343.8,3343.7,0.00448349]
[1737674753370,0.59801,3343.6,3343.0,0.5981]
[1737674753570,0.59801,3343.6,3342.7,40.8]
[1737674753571,3.80581,3343.6,3342.8,3.2078]
[1737674753779,3.2078,3343.6,3343.2,0.59807]
[1737674754282,3.2078,3343.6,3342.8,3.2078]
[1737674754480,3.2078,3343.6,3343.2,0.59806]
[1737674754682,3.2078,3343.6,3342.9,0.00448349]
[1737674754981,3.2078,3343.6,3343.0,0.59811]
[1737674754982,1.37412,3343.5,3343.0,0.59811]
[1737674755184,1.37412,3343.5,3342.9,0.60260349]
[1737674755386,0.59804,3343.4,3342.9,0.00448349]
[1737674755586,0.59804,3343.4,3342.9,0.60261349]
[1737674755786,0.59811,3343.0,3342.9,0.00448349]
[1737674755986,0.59816,3342.8,3342.2,3.80605]
[1737674756188,3.2078,3343.0,3342.2,3.2078]
[1737674756486,3.2078,3342.5,3341.6,3.2078]
[1737674756676,3.2078,3342.5,3342.0,0.59828]
[1737674756881,0.59823,3342.4,3341.7,0.59833]
[1737674757081,3.2078,3342.5,3341.9,0.00448349]
[1737674757381,0.78048349,3342.6,3341.6,3.2078]
[1737674757382,3.2078,3342.1,3341.6,3.2078]
[1737674757583,0.59832,3341.9,3341.2,3.80622]
[1737674757782,0.7722,3341.8,3341.2,3.2078]
[1737674757978,3.2078,3341.6,3340.7,3.2078]
[1737674758177,3.80617,3341.6,3340.8,0.5985]
[1737674758381,3.2078,3341.6,3341.0,0.59846]
[1737674758591,0.59838,3341.5,3340.9,0.00299842]
[1737674759088,3.2078,3341.6,3340.9,0.00299842]
[1737674759284,0.776,3341.5,3340.9,0.00299842]
[1737674759595,2.92225924,3341.4,3340.7,3.2078]
[1737674759779,3.80627,3341.1,3340.6,0.55123337]
[1737674760087,3.80627,3341.1,3340.7,0.59852]
[1737674760088,3.2078,3341.1,3340.7,0.59852]
[1737674760392,0.776,3341.5,3340.8,41.3985]
[1737674760685,0.776,3341.5,3340.8,40.8]
[1737674760891,0.776,3341.5,3340.9,0.59849]
[1737674761101,1.37439,3341.5,3340.8,40.8]
[1737674761392,1.0154,3341.5,3340.8,41.3985]
[1737674761586,1.61379,3341.5,3340.8,40.8]
[1737674761783,1.0154,3341.5,3340.8,40.8]
[1737674761987,0.59841,3341.4,3340.8,40.8]
[1737674762295,3.2078,3341.1,3340.8,40.8]
[1737674762697,0.59849,3341.0,3340.6,0.55123337]
[1737674763085,3.2078,3341.1,3340.6,0.55123337]
[1737674763290,0.59848,3341.0,3340.6,0.55123337]
[1737674763591,3.2078,3341.1,3340.6,0.55123337]
[1737674763592,3.2078,3341.1,3340.6,1.14977337]
[1737674763996,3.2078,3341.1,3340.7,0.5985]
[1737674764594,0.8329,3341.3,3340.9,0.59847]
[1737674765096,0.8329,3341.3,3341.0,0.59847]
[1737674765595,0.2394,3341.5,3340.6,3.75903337]
[1737674765890,0.2394,3341.5,3341.4,0.5984]
[1737674766491,0.2394,3341.5,3341.4,44.6062]
[1737674766686,0.8335,3342.5,3341.4,46.93005924]
[1737674766984,0.00448349,3342.6,3341.9,3.2078]
[1737674767382,3.21228349,3342.6,3341.9,3.2078]
[1737674768095,3.45158349,3342.6,3342.2,0.59824]
[1737674768587,3.45158349,3342.6,3342.3,0.59822]
[1737674769094,3.45158349,3342.6,3342.4,0.59821]
[1737674769390,0.24378349,3342.6,3342.5,0.5982]
[1737674769882,0.24378349,3342.6,3342.3,3.2078]
[1737674770088,3.45158349,3342.6,3342.1,0.59826]
[1737674770495,3.45158349,3342.6,3341.9,4.0203]
[1737674770695,0.24378349,3342.6,3341.9,4.0203]
[1737674770989,0.24378349,3342.6,3342.5,0.5982]
[1737674771393,0.24378349,3342.6,3342.3,3.2078]
[1737674771893,0.24378349,3342.6,3342.1,0.59826]
[1737674772087,0.24378349,3342.6,3342.2,0.59824]
[1737674772287,0.24378349,3342.6,3341.9,4.0203]
[1737674772489,0.24378349,3342.6,3342.2,0.59824]
[1737674772692,0.24378349,3342.6,3341.9,4.0203]
[1737674773192,3.45158349,3342.6,3342.3,0.59823]
[1737674774189,3.45158349,3342.6,3341.9,3.2078]
[1737674774497,4.88748349,3342.6,3341.9,3.2078]
[1737674774790,4.88748349,3342.6,3342.3,0.59822]
[1737674775089,4.88748349,3342.6,3342.2,0.59825]
[1737674775287,4.88748349,3342.6,3342.3,0.59824]
[1737674775792,4.90088349,3342.6,3342.3,0.59824]
[1737674776289,4.90088349,3342.6,3342.3,0.59823]
[1737674776493,4.90088349,3342.6,3342.4,0.59821]
[1737674776695,4.90088349,3342.6,3342.3,0.59823]
[1737674777390,4.90088349,3342.6,3341.5,3.2078]
[1737674777897,4.90088349,3342.6,3342.2,0.59825]
[1737674778490,4.90088349,3342.6,3341.5,3.2078]
[1737674778696,4.90088349,3342.6,3341.9,3.2078]
[1737674778892,4.90088349,3342.6,3342.3,0.59822]
[1737674779092,4.90088349,3342.6,3342.4,0.59822]
[1737674779300,0.59825,3342.3,3341.7,0.59833]
[1737674779600,3.8061,3342.0,3341.4,0.59839]
[1737674779896,0.59839,3341.5,3341.0,0.59847]
[1737674780593,0.2394,3341.5,3341.1,0.59845]
[1737674781394,0.2394,3341.5,3340.8,0.7836]
[1737674781600,0.2394,3341.5,3341.3,0.59841]
[1737674782002,0.2394,3341.5,3340.6,0.55123337]
[1737674782294,3.2078,3341.2,3340.9,0.59848]
[1737674782497,3.2078,3341.2,3340.8,0.5985]
[1737674782794,3.2078,3341.2,3340.7,40.8]
[1737674782999,3.2078,3341.2,3340.7,0.59852]
[1737674783294,3.80624,3341.2,3340.7,0.59852]
[1737674783495,3.2078,3341.2,3340.8,0.5985]
[1737674783900,3.2078,3341.2,3340.6,0.55123337]
[1737674784102,3.2078,3341.2,3341.1,0.59845]
[1737674785396,3.2078,3341.2,3341.1,41.39845]
[1737674787091,0.2394,3341.5,3341.4,0.5984]
[1737674787492,3.4472,3341.5,3341.1,40.8]
[1737674787694,0.59842,3341.3,3340.6,0.55123337]
[1737674787904,0.5984,3341.4,3340.9,0.59848]
[1737674788201,0.59841,3341.4,3341.0,0.59847]
[1737674788798,3.4472,3341.5,3340.7,40.8]
[1737674788996,3.4472,3341.5,3341.1,0.59844]
[1737674789597,3.6866,3341.5,3341.1,0.59844]
[1737674790306,3.6866,3341.5,3340.7,40.8]
[1737674790497,3.6866,3341.5,3341.1,0.59844]
[1737674791002,3.6866,3341.5,3341.4,0.5984]
[1737674791505,4.8836,3341.5,3341.4,0.5984]
[1737674792701,1.6758,3341.5,3341.4,0.5984]
[1737674793106,0.01788349,3342.6,3341.4,6.6329]
[1737674793403,0.01788349,3342.6,3342.5,0.5982]
[1737674793599,0.01788349,3342.6,3342.1,3.2078]
[1737674793600,0.01788349,3342.6,3342.2,0.59825]
[1737674793898,2.94014273,3342.6,3342.2,0.59825]
[1737674794102,2.94014273,3342.6,3342.1,40.8]
[1737674794305,1.69308349,3342.6,3342.5,0.5982]
[1737674795511,0.59821,3342.5,3342.0,41.39828]
[1737674795706,3.2078,3342.1,3341.7,0.59834]
[1737674796202,3.80607,3342.1,3341.7,0.59834]
[1737674796402,0.59834,3341.8,3341.3,3.8062]
[1737674796605,0.59834,3341.8,3340.5,1.4964]
[1737674796606,0.59836,3341.7,3341.2,0.59842]
[1737674796806,1.46266,3341.7,3341.2,0.59842]
[1737674797103,0.8643,3341.7,3340.9,3.2078]
[1737674797300,0.8643,3341.7,3341.6,0.59836]
[1737674797501,0.0156,3341.7,3341.6,0.59836]
[1737674798618,0.0156,3341.7,3341.5,0.59837]
[1737674798909,0.0156,3341.7,3341.4,0.59839]
[1737674799901,3.2234,3341.7,3341.4,0.59839]
[1737674800105,0.59836,3341.6,3341.0,0.59847]
[1737674800304,0.59839,3341.5,3341.1,0.59845]
[1737674800710,0.59839,3341.5,3340.9,3.2078]
[1737674801007,0.59839,3341.5,3341.0,0.59847]
[1737674801204,0.59839,3341.5,3341.1,0.59845]
[1737674802199,2.92225924,3341.4,3340.9,3.2078]
[1737674802407,0.59846,3341.1,3340.6,0.55123337]
[1737674802599,0.59846,3341.1,3340.6,1.14977337]
[1737674802801,0.8344,3341.2,3340.6,0.55123337]
[1737674803006,2.92225924,3341.0,3340.6,0.55123337]
[1737674803404,3.2078,3340.8,3340.6,0.55123337]
[1737674803606,0.59852,3340.7,3340.6,0.55123337]
[1737674803802,1.42082,3340.7,3340.6,0.55123337]
[1737674804413,0.8223,3340.7,3339.5,3.2078]
[1737674804604,2.92225924,3340.5,3340.2,0.5986]
[1737674804809,0.00449088,3340.4,3340.0,3.2078]
[1737674805110,0.00449088,3340.4,3340.0,0.59864]
[1737674805304,3.21229088,3340.4,3340.0,0.59864]
[1737674805505,4.00919088,3340.4,3340.0,0.59864]
[1737674806706,4.00919088,3340.4,3340.1,0.59862]
[1737674807008,3.21229088,3340.4,3340.3,0.59859]
[1737674807410,3.21229088,3340.4,3339.5,3.2078]
[1737674807611,0.59861,3340.3,3339.5,3.2078]
[1737674807809,0.59861,3340.3,3339.8,0.59867]
[1737674808008,6.13455012,3340.4,3339.5,3.2078]
[1737674808412,3.21229088,3340.4,3339.5,3.2078]
[1737674809018,3.21229088,3340.4,3340.3,0.59859]
[1737674809220,3.21229088,3340.4,3340.2,0.5986]
[1737674809717,0.28077205,3340.3,3340.2,0.5986]
[1737674810105,0.017,3340.3,3340.2,0.5986]
[1737674811316,2.93925924,3340.3,3339.4,3.2078]
[1737674811514,0.28077205,3340.2,3340.1,0.59861]
[1737674812315,0.28077205,3340.2,3339.8,0.59867]
[1737674812717,0.28077205,3340.2,3339.9,0.59866]
[1737674812913,0.28077205,3340.2,3340.1,0.59863]
[1737674813119,0.29777205,3340.3,3339.8,3.2078]
[1737674813320,0.29777205,3340.3,3340.2,0.59861]
[1737674813519,0.017,3340.3,3340.2,3.80641]
[1737674813723,0.017,3340.3,3340.2,0.59861]
[1737674814111,6.74565924,3340.3,3339.8,0.59868]
[1737674814422,0.28072931,3340.2,3339.5,4.58793]
[1737674814721,0.59866,3340.0,3339.5,4.58792]
[1737674815118,0.59864,3340.1,3339.6,0.59872]
[1737674815319,0.28072931,3340.2,3339.5,3.9892]
[1737674815624,0.87934931,3340.2,3339.7,0.59869]
[1737674816221,0.87934931,3340.2,3339.5,3.9892]
[1737674816222,0.28072931,3340.2,3339.5,3.9892]
[1737674816517,0.28072931,3340.2,3340.1,0.59863]
[1737674816719,0.017,3340.3,3340.1,0.59862]
[1737674817628,0.017,3340.3,3339.5,3.9892]
[1737674817927,0.017,3340.3,3339.9,0.59865]
[1737674818127,0.017,3340.3,3340.0,0.59864]
[1737674818326,0.017,3340.3,3339.5,3.9892]
[1737674818526,0.017,3340.3,3339.6,1.49681]
[1737674818719,0.29772931,3340.3,3340.2,0.59861]
[1737674819020,0.017,3340.3,3340.2,0.59861]
[1737674819418,0.017,3340.3,3340.0,0.59863]
[1737674819625,0.017,3340.3,3339.5,3.9892]
[1737674819819,0.017,3340.3,3340.1,0.59862]
[1737674820227,0.017,3340.3,3340.2,0.59861]
[1737674821742,0.017,3340.3,3340.1,0.59862]
[1737674821942,3.2248,3340.3,3340.1,0.59862]
[1737674822144,0.28072931,3340.2,3339.9,0.8185]
[1737674822443,0.28072931,3340.2,3339.5,3.9892]
[1737674822643,0.59865,3340.0,3339.5,3.9892]
[1737674822840,3.2078,3339.9,3339.6,0.59871]
[1737674823040,0.28072931,3339.8,3339.5,0.7814]
[1737674823244,0.28072931,3339.8,3339.7,0.5987]
[1737674823444,0.52022931,3339.8,3339.7,0.5987]
[1737674823651,0.2395,3339.8,3339.7,41.3987]
[1737674824248,0.29777105,3340.3,3339.7,40.8]
[1737674824453,1.49517105,3340.3,3340.2,0.59861]
[1737674825746,1.2144,3340.3,3340.2,0.59861]
[1737674829146,1.49510746,3340.3,3340.2,0.59861]
[1737674829458,1.2144,3340.3,3340.2,0.59861]
[1737674829649,1.49510746,3340.3,3339.9,3.2078]
[1737674829954,1.2144,3340.3,3340.2,0.59861]
[1737674830153,1.49510746,3340.3,3340.2,0.59861]
[1737674830554,1.49510746,3340.3,3340.2,0.36867613]
[1737674830855,1.2144,3340.3,3340.2,0.36867613]
[1737674831057,1.49510746,3340.3,3339.9,3.2078]
[1737674831355,1.49510746,3340.3,3340.2,0.59861]
[1737674831944,1.2144,3340.3,3340.2,0.59861]
[1737674835951,1.2144,3340.3,3340.2,41.39861]
[1737674837550,1.21245363,3340.3,3340.2,41.39861]
[1737674837752,1.1974,3340.3,3340.2,41.39861]
[1737674838853,1.1974,3340.3,3340.2,0.59861]
[1737674839053,0.59862,3340.2,3340.1,0.59862]
[1737674839561,0.87932746,3340.2,3340.1,0.59862]
[1737674839761,3.48850746,3340.2,3339.5,3.9892]
[1737674839960,0.59869,3339.8,3339.7,0.59869]
[1737674840364,0.87938746,3339.9,3339.7,0.59869]
[1737674840554,0.87938746,3339.9,3339.1,42.29701]
[1737674840555,0.87938746,3339.9,3339.8,0.59868]
[1737674840963,0.87938746,3339.9,3339.8,0.37236874]
[1737674841664,2.07698746,3339.9,3339.8,0.37236874]
[1737674842261,2.07698746,3339.9,3339.1,40.8]
[1737674842262,1.47830746,3339.9,3339.1,40.8]
[1737674842461,2.27301278,3339.3,3339.0,3.2078]
[1737674842656,0.59884,3339.0,3338.3,0.59895]
[1737674842964,2.27301278,3339.0,3338.7,0.59887]
[1737674843168,0.28070746,3338.9,3338.8,0.59886]
[1737674843467,0.87952746,3339.1,3338.8,0.59886]
[1737674843956,0.59883,3339.0,3338.7,0.59887]
[1737674844162,0.59883,3339.0,3338.5,0.59892]
[1737674844360,0.59883,3339.0,3338.6,0.59889]
[1737674844561,0.28070746,3339.1,3339.0,0.59883]
[1737674844865,0.28070746,3339.2,3339.1,0.59881]
[1737674845060,0.28070746,3339.2,3338.6,3.2078]
[1737674845257,0.28070746,3339.2,3338.9,0.59883]
[1737674845653,0.28070746,3339.2,3339.0,0.59882]
[1737674845853,0.87950746,3339.2,3338.8,0.59886]
[1737674846063,0.59882,3339.1,3338.6,3.80669]
[1737674846268,0.59884,3339.0,3338.6,3.2078]
[1737674846765,0.28070746,3339.2,3338.4,0.59892]
[1737674846766,3.2078,3338.8,3338.4,0.59892]
[1737674847068,1.13000746,3338.7,3338.4,0.59892]
[1737674847269,2.77760746,3338.7,3338.2,40.8]
[1737674847462,1.6752,3338.7,3338.6,0.5989]
[1737674847765,3.2078,3338.8,3338.3,1.49739]
[1737674847967,3.2078,3338.8,3338.7,0.59888]
[1737674848159,3.48868405,3338.8,3338.7,41.39888]
[1737674849260,3.48868405,3338.8,3338.7,0.59888]
[1737674849460,3.2078,3338.8,3338.7,0.59888]
[1737674849761,3.2078,3338.8,3338.7,41.39888]
[1737674850363,3.2078,3339.5,3339.4,0.59874]
[1737674850565,3.48864689,3339.5,3339.4,0.59874]
[1737674851560,3.62084689,3339.5,3339.4,0.59874]
[1737674854073,3.62084689,3339.5,3338.9,0.8708]
[1737674854276,0.28084305,3339.4,3338.9,0.8708]
[1737674854476,0.28084305,3339.4,3339.3,0.59876]
[1737674854974,1.47864305,3339.4,3339.3,0.59876]
[1737674855569,1.47864305,3339.4,3338.7,3.2078]
[1737674855770,1.47864305,3339.4,3339.3,0.59877]
[1737674855972,1.71814305,3339.4,3339.3,0.59877]
[1737674856168,1.4373,3339.4,3339.3,0.59877]
[1737674858673,1.4373,3339.4,3339.1,3.2078]
[1737674858869,2.92908832,3339.3,3339.1,3.2078]
[1737674859072,0.87961133,3339.2,3339.1,3.2078]
[1737674859468,0.28082133,3339.2,3338.8,0.59885]
[1737674859668,0.59882,3339.1,3338.8,0.59885]
[1737674859876,0.28082133,3339.2,3338.4,41.6378]
[1737674859877,1.42124,3339.0,3338.7,0.59887]
[1737674860175,1.6145,3339.0,3338.4,0.8378]
[1737674860369,0.28082133,3339.2,3338.6,3.2078]
[1737674860575,0.28082133,3339.2,3339.1,0.59881]
[1737674860773,0.28082133,3339.2,3338.6,3.2078]
[1737674860774,0.28082133,3339.3,3339.2,0.59879]
[1737674860972,0.28082133,3339.3,3338.8,1.49716]
[1737674860973,1.4373,3339.4,3339.3,0.59877]
[1737674861165,1.4373,3339.4,3339.3,41.39877]
[1737674861365,1.4373,3339.4,3339.3,0.59877]
[1737674861566,1.71814053,3339.4,3339.3,0.59877]
[1737674862271,1.4373,3339.4,3339.3,0.59877]
[1737674863671,4.56043281,3339.4,3339.3,0.59877]
[1737674863877,4.84127334,3339.4,3339.3,0.59877]
[1737674864777,4.86047334,3339.4,3339.3,0.59877]
[1737674866183,4.01207334,3339.4,3339.3,0.59877]
[1737674866386,1.73734053,3339.4,3339.3,0.59877]
[1737674866879,1.4565,3339.4,3339.3,0.59877]
[1737674867988,4.32999281,3339.4,3339.1,0.59879]
[1737674868171,0.87962053,3339.3,3339.0,3.80662]
[1737674868376,0.28084053,3339.3,3339.2,0.59879]
[1737674868581,0.28084053,3339.3,3339.1,0.5988]
[1737674868779,0.28084053,3339.3,3339.0,3.80662]
[1737674869083,0.28084053,3339.3,3339.0,3.57305532]
[1737674869479,0.59884,3339.0,3338.7,0.59887]
[1737674869671,2.27473281,3338.8,3338.6,0.59889]
[1737674869884,0.28084053,3338.7,3338.6,0.59889]
[1737674870080,0.28084053,3338.7,3338.4,3.2078]
[1737674870284,2.27473281,3338.5,3338.4,3.2078]
[1737674870486,2.55557334,3338.5,3338.4,3.80673]
[1737674870779,2.55557334,3338.5,3338.4,0.59893]
[1737674870986,2.55557334,3338.5,3338.3,0.59894]
[1737674871174,0.28084053,3338.4,3338.3,0.59894]
[1737674871983,0.28084053,3338.4,3338.1,0.59898]
[1737674872288,1.15204053,3338.4,3338.2,0.59895]
[1737674872487,0.28084053,3338.4,3337.9,40.8]
[1737674872685,0.28533141,3338.7,3338.6,0.5989]
[1737674872990,0.00449088,3338.7,3338.6,0.5989]
[1737674873485,0.00449088,3338.7,3338.6,41.3989]
[1737674876082,0.00449088,3338.7,3338.6,44.6067]
[1737674878296,0.00449088,3338.7,3338.6,3.8067]
[1737674878587,0.00449088,3338.7,3338.6,0.5989]
[1737674879886,0.13759088,3338.7,3338.6,0.5989]
[1737674883295,0.14059088,3338.7,3338.6,0.5989]
[1737674885796,0.38019088,3338.7,3338.6,0.5989]
[1737674887694,0.38019088,3338.7,3338.6,1.4048]
[1737674887898,0.38019088,3338.7,3338.6,0.5989]
[1737674888999,1.59889088,3338.7,3338.6,0.5989]
[1737674889904,0.94259088,3338.7,3338.6,0.5989]
[1737674891804,8.8e-07,3338.8,3338.7,0.59888]
[1737674894104,8.8e-07,3338.8,3338.5,0.59891]
[1737674894105,0.59889,3338.7,3338.5,0.59891]
[1737674894295,3.70494281,3338.6,3338.4,0.59892]
[1737674894495,0.28084053,3338.5,3338.4,0.59892]
[1737674894799,0.28084053,3338.5,3337.8,3.2078]
[1737674895103,2.27473281,3338.1,3338.0,0.599]
[1737674895307,2.55557334,3338.1,3337.8,3.2078]
[1737674895500,3.2078,3337.9,3337.4,3.2078]
[1737674895701,2.27473281,3337.7,3337.6,0.59908]
[1737674895897,2.55557334,3337.7,3337.6,0.59908]
[1737674896097,0.28084053,3337.7,3337.6,0.59908]
[1737674896310,0.28084053,3337.8,3337.7,0.59906]
[1737674896508,7.16793281,3338.3,3338.1,0.59899]
[1737674896509,0.28084053,3338.2,3338.1,0.59899]
[1737674900707,0.28084053,3338.2,3337.8,3.2078]
[1737674900905,2.27473281,3337.9,3337.2,3.2078]
[1737674901104,1.09824053,3337.8,3337.7,0.59905]
[1737674901312,1.09824053,3337.8,3337.5,0.59908]
[1737674901613,2.27473281,3337.6,3337.3,0.59912]
[1737674901812,1.05654053,3337.5,3337.3,0.59912]
[1737674902105,0.59912,3337.4,3337.2,3.2078]
[1737674902308,0.59916,3337.2,3336.8,0.59921]
[1737674902515,0.28084053,3337.2,3336.4,3.2078]
[1737674902714,0.28084053,3337.2,3337.1,0.59917]
[1737674903017,0.28084053,3337.2,3336.5,1.4982]
[1737674903018,0.28084053,3337.2,3337.0,0.59918]
[1737674904408,3.48864053,3337.2,3337.0,0.59918]
[1737674904602,0.28084053,3337.1,3337.0,0.59918]
[1737674905212,0.28084053,3337.1,3336.9,0.5992]
[1737674905519,3.07333281,3337.0,3336.9,0.5992]
[1737674905818,3.35417334,3337.0,3336.9,0.5992]
[1737674906206,3.35417334,3337.0,3336.3,40.8]
[1737674906513,3.07333281,3337.0,3336.9,0.5992]
[1737674910019,3.07333281,3337.0,3336.8,0.59921]
[1737674910318,3.07333281,3337.0,3336.9,0.5992]
[1737674911321,3.07333281,3337.0,3336.8,0.59921]
[1737674911805,3.07333281,3337.0,3336.4,3.2078]
[1737674912011,3.07333281,3337.0,3336.9,0.5992]
[1737674913020,3.07333281,3337.0,3336.3,40.8]
[1737674913324,3.07333281,3337.0,3336.9,0.5992]
[1737674914519,3.07633281,3337.0,3336.9,0.5992]
[1737674918225,4.27493281,3337.0,3336.9,0.5992]
[1737674921421,5.15516396,3337.0,3336.6,0.59924]
[1737674921615,2.27473281,3336.7,3336.6,0.59924]
[1737674923021,2.55579358,3336.7,3336.6,0.59924]
[1737674923730,2.55579358,3336.7,3336.0,4.852]
[1737674923731,0.59929,3336.5,3336.2,0.59932]
[1737674923922,5.48253281,3336.4,3336.2,0.59932]
[1737674924125,0.28106077,3336.3,3336.2,0.59932]
[1737674924321,0.28106077,3336.3,3335.7,40.8]
[1737674924629,2.27473281,3335.9,3335.8,0.59939]
[1737674924828,2.55579358,3335.9,3335.8,0.5994]
[1737674925030,0.28106077,3335.9,3335.8,0.5994]
[1737674925328,0.28108507,3336.1,3336.0,0.59937]
[1737674925624,0.28108507,3336.4,3336.3,0.59931]
[1737674928329,0.28108507,3336.7,3336.6,0.59926]
[1737674929224,0.28108507,3336.7,3336.3,1.647]
[1737674929431,2.27473281,3336.4,3336.3,2.24631]
[1737674929621,2.55581788,3336.4,3336.3,2.24631]
[1737674930023,2.55581788,3336.4,3336.3,0.59931]
[1737674930221,0.28108507,3336.4,3336.3,0.59931]
[1737674930426,0.28108507,3336.6,3336.5,0.59928]
[1737674931126,0.28108507,3336.6,3336.5,0.36901485]
[1737674931331,0.28108507,3336.6,3336.4,0.59928]
[1737674931534,0.28108507,3336.6,3336.5,0.59928]
[1737674931724,0.28108507,3336.6,3336.0,4.8384]
[1737674931923,0.28108507,3336.6,3336.5,0.59928]
[1737674932338,0.88034507,3336.6,3336.3,0.5993]
[1737674932631,2.27473281,3336.4,3336.3,0.5993]
[1737674932835,2.55581788,3336.4,3336.3,0.5993]
[1737674934330,0.28108507,3336.4,3336.3,0.5993]
[1737674934525,0.8626,3336.5,3336.0,4.8384]
[1737674934526,0.28108507,3336.5,3336.4,0.59929]
[1737674934724,3.2078,3336.8,3336.6,0.59926]
[1737674934725,0.28108507,3336.7,3336.6,0.59926]
[1737674936729,0.28108507,3336.9,3336.8,0.59922]
[1737674937536,1.47978507,3336.9,3336.8,0.59922]
[1737674940040,1.1987,3336.9,3336.8,0.59922]
[1737674940525,1.1987,3336.9,3336.8,3.80702]
[1737674941129,1.1987,3336.9,3336.8,44.60702]
[1737674942539,0.003,3337.0,3336.8,44.0078]
[1737674942735,0.003,3337.0,3336.9,2.2636]
[1737674945133,0.2645,3337.1,3336.9,1.6644]
[1737674945328,0.28108507,3337.9,3337.4,0.59911]
[1737674945533,0.28108507,3337.9,3337.4,3.80691]
[1737674946229,0.28108507,3338.2,3337.4,3.80691]
[1737674946438,8.8e-07,3337.5,3337.4,3.80691]
[1737674947238,8.8e-07,3337.5,3337.4,8.80691]
[1737674947942,8.8e-07,3337.5,3337.4,49.60691]
[1737674949239,2.27473281,3339.5,3338.2,2.27473281]
[1737674949438,0.28084897,3339.4,3339.3,0.59877]
[1737674949637,3.48864897,3339.4,3338.6,3.2078]
[1737674949837,2.27473281,3338.7,3338.3,1.6503]
[1737674950041,0.28089094,3338.6,3338.3,1.6503]
[1737674950240,8.8e-07,3338.8,3338.5,0.59892]
[1737674950442,8.8e-07,3338.8,3338.7,0.59888]
[1737674951043,8.8e-07,3338.8,3338.7,41.39888]
[1737674951645,8.8e-07,3338.8,3338.7,0.59888]
[1737674952047,8.8e-07,3338.8,3338.7,41.39888]
[1737674953136,8.8e-07,3338.8,3338.7,0.59888]
[1737674954839,8.8e-07,3338.8,3338.2,0.00449088]
[1737674955044,6.08142281,3338.7,3338.3,0.59894]
[1737674955241,2.27473281,3338.4,3338.3,0.59895]
[1737674955839,0.7928,3338.6,3338.5,0.59892]
[1737674958644,0.7928,3338.6,3338.2,0.00449088]
[1737674958854,2.27473281,3338.4,3338.2,0.00449088]
[1737674959044,2.27473281,3338.4,3338.2,0.60345088]
[1737674959442,0.7928,3338.6,3338.2,0.00449088]
[1737674959737,1.3917,3338.6,3338.2,0.60345088]
[1737674960053,0.7928,3338.6,3338.3,0.59894]
[1737674960347,1.07372545,3338.6,3338.3,0.59894]
[1737674960548,1.67263545,3338.6,3338.2,0.60344088]
[1737674961147,2.27473281,3338.4,3338.2,0.00449088]
[1737674961344,3.2078,3338.3,3338.2,0.00449088]
[1737674961549,0.59901,3338.0,3337.6,0.59908]
[1737674961749,0.59905,3337.8,3337.5,0.59909]
[1737674961951,0.88002263,3337.8,3337.4,0.5991]
[1737674962543,2.27473281,3337.6,3336.8,3.2078]